bitfinex-derivatives/quotes_ETHF0:USTF0_20260312
["timestamp","ask_amount","ask_price","bid_price","bid_amount"]
[1773333933560,1.13113578,2073.3,2072.4,0.022]
[1773333933759,1.02113578,2073.1,2072.4,0.022]
[1773333933961,1.26230578,2073.1,2072.4,0.022]
[1773333934163,7.58230578,2073.1,2072.2,0.022]
[1773333934363,1.02113578,2073.0,2072.0,0.022]
[1773333934562,1.02113578,2072.7,2072.0,0.022]
[1773333934762,1.02739618,2072.7,2072.0,0.022]
[1773333935560,1.02739618,2072.7,2071.8,0.022]
[1773333936165,1.02739618,2072.7,2071.8,0.98753071]
[1773333936563,1.02739618,2072.7,2071.8,0.99168761]
[1773333936964,1.02739618,2072.7,2071.8,0.0261569]
[1773333937564,1.02113578,2072.5,2071.8,0.0261569]
[1773333939561,1.02113578,2072.5,2071.6,0.022]
[1773333940060,1.02113578,2072.3,2071.6,0.022]
[1773333940460,1.02113578,2071.9,2071.4,0.022]
[1773333940757,1.02113578,2071.9,2071.2,0.022]
[1773333941765,1.02113578,2071.9,2071.2,0.02758448]
[1773333943365,0.98294942,2071.8,2071.2,0.02758448]
[1773333944061,0.98294942,2071.8,2071.2,0.95345617]
[1773333944266,0.98294942,2072.2,2071.2,0.95345617]
[1773333944866,0.98294942,2072.1,2071.2,0.95345617]
[1773333945164,0.98294942,2071.4,2070.0,0.94787169]
[1773333945370,4.9923294,2071.3,2070.0,0.94787169]
[1773333945564,0.98294942,2071.1,2070.0,0.94787169]
[1773333946157,0.98911459,2071.1,2070.2,0.02566597]
[1773333946765,1.23051459,2071.1,2070.2,0.02566597]
[1773333947068,0.98294942,2070.8,2070.2,0.02566597]
[1773333947264,0.98294942,2070.8,2070.0,0.022]
[1773333947569,2.79890671,2070.9,2069.6,0.94787169]
[1773333947570,0.98294942,2070.7,2069.6,0.94787169]
[1773333947768,0.98294942,2070.7,2069.6,0.022]
[1773333948365,0.98294942,2070.7,2069.8,0.02715685]
[1773333949171,5.97535601,2070.8,2069.6,0.022]
[1773333949172,0.98294942,2070.2,2069.6,0.022]
[1773333950067,0.98294942,2070.2,2069.6,0.02808752]
[1773333951667,0.98294942,2070.2,2069.4,0.022]
[1773333951971,0.98294942,2070.2,2069.2,0.022]
[1773333952462,0.98294942,2070.2,2069.2,0.95114284]
[1773333952664,0.98294942,2070.2,2069.2,0.95594704]
[1773333953060,6.325,2070.8,2069.2,0.95594704]
[1773333953061,0.94754635,2070.7,2069.2,0.95594704]
[1773333953766,0.94754635,2070.5,2069.2,0.95594704]
[1773333955269,0.94754635,2070.3,2069.2,0.95594704]
[1773333957568,3.04038671,2070.4,2069.2,0.95594704]
[1773333957569,0.94754635,2070.1,2069.2,0.95594704]
[1773333957766,0.24153,2070.0,2069.2,0.0268042]
[1773333957964,0.94754635,2069.9,2069.2,0.0268042]
[1773333958972,0.94754635,2069.5,2069.0,0.022]
[1773333959974,0.95147526,2069.5,2069.0,0.02618398]
[1773333960372,1.19137635,2069.3,2069.0,0.02618398]
[1773333960670,1.19277635,2069.2,2068.8,0.022]
[1773333960871,0.94754635,2069.1,2068.6,0.95114284]
[1773333961273,0.94754635,2069.4,2068.6,0.95114284]
[1773333961872,0.00392891,2069.5,2068.6,0.95688924]
[1773333962066,0.00392891,2069.5,2068.6,0.0277464]
[1773333962067,0.95147526,2069.5,2068.6,0.0277464]
[1773333962273,0.94754635,2069.3,2068.6,0.0277464]
[1773333962472,0.94754635,2069.1,2068.4,0.95114284]
[1773333963275,0.24165,2069.0,2068.4,0.022]
[1773333963475,0.94754635,2068.9,2068.2,0.022]
[1773333963871,0.94754635,2068.9,2068.0,0.022]
[1773333964272,0.24167,2068.8,2068.0,0.022]
[1773333964485,0.94754635,2068.5,2067.8,0.022]
[1773333964869,5.94501,2068.9,2067.4,0.022]
[1773333964870,0.94754635,2068.3,2067.4,0.022]
[1773333965275,0.94754635,2068.1,2067.4,0.022]
[1773333965472,0.94754635,2068.1,2067.4,0.00380393]
[1773333965773,0.94754635,2067.4,2066.6,0.73769921]
[1773333965981,0.94754635,2067.0,2066.6,0.73769921]
[1773333966379,0.94754635,2067.0,2066.6,0.36726461]
[1773333966574,0.94754635,2067.0,2066.6,0.37176648]
[1773333966575,0.95127076,2067.0,2066.6,0.37176648]
[1773333966776,0.00372441,2067.0,2066.6,1.30090932]
[1773333966985,0.95127076,2067.0,2066.6,0.37176648]
[1773333967378,0.95127076,2067.0,2066.6,0.07548632]
[1773333968082,6.325,2067.6,2066.6,1.00462916]
[1773333968083,0.94754635,2067.2,2066.6,1.00462916]
[1773333968278,0.94754635,2067.2,2066.6,0.07548632]
[1773333968587,0.94754635,2067.2,2066.6,1.00462916]
[1773333968883,0.94754635,2067.6,2066.6,1.00462916]
[1773333969081,0.95337632,2067.6,2066.6,1.00462916]
[1773333970275,0.00582997,2067.6,2066.6,1.00462916]
[1773333970684,0.95337632,2067.6,2066.6,1.00462916]
[1773333970885,0.00582997,2067.6,2066.6,1.00462916]
[1773333971890,0.94754635,2068.2,2066.6,1.00462916]
[1773333972977,0.95332739,2068.2,2066.6,1.00462916]
[1773333973178,0.94754635,2067.9,2066.7,0.92914284]
[1773333975282,0.00578104,2068.2,2066.7,0.92914284]
[1773333975485,0.95332739,2068.2,2066.9,0.92914284]
[1773333976083,0.94754635,2067.9,2067.1,0.92914284]
[1773333976883,0.94754635,2068.1,2067.1,0.92914284]
[1773333977593,2.80854107,2068.0,2067.1,0.92914284]
[1773333977887,0.94754635,2067.9,2067.1,0.92914284]
[1773333980382,0.00578104,2068.2,2067.1,0.92914284]
[1773333981387,0.98642183,2068.2,2067.3,1.01828675]
[1773333981994,0.00578104,2068.2,2067.3,1.01828675]
[1773333982991,0.98642183,2068.2,2067.4,1.01828675]
[1773333984089,0.98064079,2068.1,2066.7,1.01828675]
[1773333984297,0.98064079,2068.1,2067.2,1.01828675]
[1773333987399,0.98064079,2068.1,2067.3,1.01828675]
[1773333987894,0.00578104,2068.2,2067.3,1.01828675]
[1773333989396,0.98642183,2068.2,2067.3,1.01828675]
[1773333990100,0.98064079,2068.1,2067.3,1.01828675]
[1773333991197,0.98064079,2067.5,2066.9,1.01828675]
[1773333992104,0.98064079,2067.4,2066.9,1.01828675]
[1773333993103,4.99002077,2067.8,2066.9,1.01828675]
[1773333993298,6.9744884,2067.7,2066.9,1.01828675]
[1773333993499,6.9744884,2067.6,2066.9,1.01828675]
[1773333993699,0.98064079,2067.6,2066.9,1.01828675]
[1773333994302,0.98064079,2067.5,2066.9,1.01828675]
[1773333994503,0.98064079,2067.4,2066.9,1.01828675]
[1773333994708,5.99776514,2067.6,2066.9,1.01828675]
[1773333995207,0.98064079,2067.8,2066.9,1.01828675]
[1773333995914,0.98064079,2067.7,2067.0,7.34328675]
[1773333996116,0.98064079,2067.7,2067.1,1.01828675]
[1773333996609,0.98064079,2067.6,2067.1,1.01828675]
[1773333996805,0.98064079,2067.6,2066.9,6.325]
[1773333997011,0.98064079,2067.5,2066.9,6.325]
[1773333997206,0.98064079,2067.5,2066.9,7.34328675]
[1773333997416,0.98064079,2067.5,2066.9,1.01828675]
[1773333997717,0.98064079,2067.4,2066.9,1.01828675]
[1773333997912,7.16947894,2067.4,2066.9,1.01828675]
[1773333998314,7.16947894,2067.4,2066.6,1.09377307]
[1773333998315,0.98064079,2067.3,2066.6,1.09377307]
[1773333998515,0.98064079,2067.2,2066.6,1.09377307]
[1773333999219,0.98064079,2067.2,2066.6,0.07548632]
[1773333999414,0.98064079,2066.9,2066.6,0.07548632]
[1773333999615,0.98064079,2066.9,2066.5,1.01828675]
[1773333999814,0.98064079,2066.9,2066.2,0.022]
[1773334000113,0.98064079,2066.7,2066.0,1.04028675]
[1773334000310,6.92700821,2066.7,2066.0,1.04028675]
[1773334000510,0.98064079,2066.6,2066.0,1.04387409]
[1773334001712,0.00498735,2066.7,2066.0,1.04387409]
[1773334001909,0.98562814,2066.7,2066.0,1.04387409]
[1773334002114,0.00498735,2066.7,2066.2,1.01828675]
[1773334002314,1.08739635,2067.1,2066.2,1.01828675]
[1773334002814,1.08739635,2067.0,2066.2,1.01828675]
[1773334003016,1.08739635,2066.9,2066.2,7.34428675]
[1773334003317,1.0912779,2066.9,2066.2,7.34428675]
[1773334003618,1.0912779,2066.9,2066.3,1.10655993]
[1773334006109,1.3331679,2066.9,2066.3,1.10655993]
[1773334006313,1.3331679,2066.9,2066.1,1.10655993]
[1773334006715,1.3331679,2066.9,2066.2,1.10655993]
[1773334007220,0.00388155,2066.9,2066.2,1.10655993]
[1773334007419,5.92410332,2067.2,2066.2,1.10655993]
[1773334007623,1.08739635,2067.3,2066.2,1.10655993]
[1773334008017,0.43184,2067.4,2066.2,1.10655993]
[1773334008320,0.19,2067.4,2066.2,1.10655993]
[1773334008524,0.19490827,2067.4,2066.4,1.10655993]
[1773334009217,1.28230462,2067.4,2066.4,1.10655993]
[1773334009413,1.28230462,2067.4,2066.6,1.10655993]
[1773334009618,1.08739635,2067.2,2066.7,1.10655993]
[1773334011019,1.09397374,2067.0,2066.3,1.11673087]
[1773334014323,1.09397374,2067.0,2066.5,1.11673087]
[1773334014722,1.35171374,2067.0,2066.5,1.11673087]
[1773334016022,1.09397374,2067.0,2066.5,0.87373087]
[1773334016624,1.38412374,2066.9,2066.5,0.87373087]
[1773334016831,1.33588374,2066.8,2066.3,7.17779087]
[1773334017427,1.33588374,2066.8,2066.3,6.326]
[1773334017628,1.33588374,2066.8,2066.2,6.326]
[1773334017828,1.33588374,2066.8,2066.2,7.44273087]
[1773334018131,1.33593374,2066.4,2065.8,1.13873087]
[1773334018330,1.33593374,2066.4,2065.8,0.022]
[1773334018639,1.59553374,2066.0,2065.6,0.022]
[1773334019133,1.33597374,2066.0,2065.6,1.14322404]
[1773334019536,1.57910374,2066.0,2065.6,1.14322404]
[1773334019733,1.33597374,2066.0,2065.4,1e-05]
[1773334019932,1.09397374,2065.5,2065.0,0.022]
[1773334020228,1.09397374,2065.5,2064.8,0.33743691]
[1773334020229,0.24207,2065.4,2064.8,0.022]
[1773334020435,1.09397374,2065.3,2064.6,6.66330778]
[1773334020832,1.09831355,2065.3,2064.7,0.31845985]
[1773334021035,1.09397374,2065.5,2064.7,0.31845985]
[1773334021632,1.09397374,2065.5,2064.7,0.12845985]
[1773334022131,1.09397374,2065.8,2064.7,0.12845985]
[1773334022438,1.09397374,2065.5,2064.7,0.12845985]
[1773334022739,1.09397374,2065.4,2064.6,6.56055502]
[1773334023035,1.09993914,2065.4,2064.6,6.56055502]
[1773334023240,1.09993914,2065.4,2064.7,0.20660503]
[1773334023438,1.09993914,2065.4,2064.6,6.35394999]
[1773334024339,1.09993914,2065.4,2064.7,0.29081151]
[1773334025542,0.24208,2065.3,2064.6,0.02794999]
[1773334025742,1.09397374,2065.2,2064.6,0.02794999]
[1773334026043,2.81486016,2065.0,2064.0,0.022]
[1773334026240,1.33610374,2064.9,2064.0,0.29502962]
[1773334026743,1.33610374,2064.9,2064.2,0.23675952]
[1773334027137,1.09397374,2065.3,2064.2,0.24031146]
[1773334028744,0.2480354,2065.4,2064.3,0.147923]
[1773334028745,0.0059654,2065.4,2064.3,0.147923]
[1773334029643,1.09397374,2065.7,2064.5,0.09482998]
[1773334029843,1.33598374,2065.9,2064.7,0.09482998]
[1773334030043,1.33598374,2065.9,2064.9,0.09482998]
[1773334030237,1.33598374,2065.9,2065.1,0.05736687]
[1773334030238,1.09397374,2065.9,2065.1,0.05736687]
[1773334030637,1.09774003,2065.9,2065.2,6.328]
[1773334030946,1.09774003,2065.9,2065.3,0.05736687]
[1773334031641,1.09774003,2065.9,2065.2,6.328]
[1773334032041,1.09397374,2066.3,2065.2,6.328]
[1773334033138,1.0980918,2066.3,2065.2,6.328]
[1773334033640,1.0980918,2066.3,2064.6,3.05702016]
[1773334033844,1.0980918,2066.3,2064.7,6.327]
[1773334034039,1.0980918,2066.3,2064.6,0.24216]
[1773334034239,1.0980918,2066.3,2064.7,47.127]
[1773334034847,1.0980918,2066.3,2064.8,0.24214]
[1773334036041,1.0980918,2066.3,2064.9,6.327]
[1773334036736,1.0980918,2066.3,2064.8,0.24214]
[1773334037037,1.09397374,2066.1,2064.9,6.327]
[1773334037443,0.00411806,2066.3,2064.9,6.327]
[1773334037444,1.0980918,2066.3,2065.0,0.24211]
[1773334037643,0.00411806,2066.3,2065.1,40.8]
[1773334038241,0.00411806,2066.3,2065.2,0.48676]
[1773334038447,1.09397374,2066.5,2065.2,0.48464]
[1773334038941,1.09397374,2066.5,2065.2,0.4846]
[1773334039343,1.09831357,2066.5,2065.2,0.4846]
[1773334040140,1.09831357,2066.5,2065.2,0.24209]
[1773334040340,1.09831357,2066.5,2065.1,40.8]
[1773334040741,1.09831357,2066.5,2065.1,41.04223]
[1773334040942,1.09831357,2066.5,2065.1,41.28433]
[1773334041343,1.09831357,2066.5,2065.1,41.0421]
[1773334041545,1.09831357,2066.5,2065.1,41.289]
[1773334042042,1.09831357,2066.5,2065.1,41.28602]
[1773334042435,1.09831357,2066.5,2065.1,41.0421]
[1773334042640,1.01041309,2066.3,2065.1,40.8]
[1773334042941,1.01041309,2066.3,2065.2,6.326]
[1773334043142,1.01041309,2066.3,2065.3,6.326]
[1773334043343,1.01041309,2066.3,2065.4,6.57689]
[1773334043541,1.01041309,2066.3,2065.5,6.57466]
[1773334043746,1.01041309,2066.3,2065.6,6.57419]
[1773334043942,1.01041309,2066.3,2065.7,6.57332]
[1773334044142,1.01041309,2066.3,2065.8,6.326]
[1773334047343,1.01041309,2066.3,2065.9,6.326]
[1773334047550,0.24612874,2066.3,2065.9,6.49325941]
[1773334047849,0.24612874,2066.3,2065.9,6.326]
[1773334048054,0.80794988,2066.1,2065.7,0.00377606]
[1773334048457,0.80794988,2066.1,2065.5,6.326]
[1773334049456,0.80794988,2065.9,2065.5,6.33100952]
[1773334051752,9.84394373,2066.5,2065.6,0.13916605]
[1773334051753,0.80794988,2066.2,2065.6,0.13916605]
[1773334051953,0.80794988,2066.4,2065.6,0.13916605]
[1773334052653,0.81228971,2066.5,2065.6,0.13916605]
[1773334053751,0.81228971,2066.5,2065.7,6.327]
[1773334054354,0.80794988,2066.3,2065.8,6.327]
[1773334054860,0.80794988,2066.1,2065.5,6.33200952]
[1773334055059,0.80794988,2065.9,2065.5,6.33200952]
[1773334057059,0.80794988,2066.4,2065.6,0.01805321]
[1773334057253,0.00433983,2066.5,2065.6,0.01805321]
[1773334057554,0.80794988,2067.5,2066.1,0.24198]
[1773334057761,0.80794988,2067.5,2066.2,6.327]
[1773334058660,1.05513085,2067.5,2066.2,6.327]
[1773334058859,0.80794988,2067.4,2066.2,6.327]
[1773334061755,0.80794988,2067.4,2066.1,0.24198]
[1773334061957,0.80794988,2067.4,2066.2,6.326]
[1773334062759,0.80794988,2067.4,2066.3,6.326]
[1773334063059,0.80794988,2067.4,2066.4,6.326]
[1773334063365,0.24184,2067.3,2066.4,6.326]
[1773334063660,0.63172585,2067.0,2065.6,7.82309507]
[1773334063864,0.63172585,2067.0,2065.6,0.24204]
[1773334064063,0.63172585,2067.0,2065.7,6.326]
[1773334064565,0.63172585,2066.8,2065.8,6.326]
[1773334065264,0.63080573,2066.6,2065.5,0.00500952]
[1773334065459,0.63080573,2066.6,2065.6,6.326]
[1773334066063,5.91471168,2067.2,2065.6,6.326]
[1773334066064,0.63080573,2067.1,2065.6,6.326]
[1773334066268,0.63080573,2067.1,2065.5,0.24705952]
[1773334066565,0.63080573,2067.1,2065.7,6.326]
[1773334066957,0.63080573,2067.1,2065.8,0.24202]
[1773334068566,0.63080573,2067.1,2065.9,6.57071]
[1773334068766,0.63080573,2067.1,2066.0,0.48896]
[1773334069365,0.87336281,2067.3,2066.0,0.48896]
[1773334069564,0.63151281,2067.2,2066.0,0.242]
[1773334069760,0.63151281,2067.2,2066.0,0.48456]
[1773334070862,0.63151281,2067.4,2066.0,0.48456]
[1773334071666,0.63151281,2067.4,2066.4,0.50621]
[1773334071867,0.63151281,2067.4,2066.5,6.59363]
[1773334072070,0.00535097,2067.5,2066.5,6.59363]
[1773334072373,0.63245947,2067.4,2066.6,6.57362]
[1773334072576,0.63245947,2067.3,2066.7,6.327]
[1773334072775,0.63245947,2067.3,2066.7,6.57285]
[1773334073470,0.63570911,2067.5,2066.7,6.57285]
[1773334073872,0.63570911,2067.5,2066.7,6.327]
[1773334076376,0.63570911,2067.5,2066.8,6.327]
[1773334076576,0.63099224,2067.3,2066.5,6.327]
[1773334076875,0.63099224,2067.1,2066.6,6.327]
[1773334077272,0.63099224,2067.1,2065.8,7.82306507]
[1773334077472,0.63099224,2067.1,2065.9,6.327]
[1773334078371,0.63099224,2067.1,2066.0,0.242]
[1773334078979,0.00535097,2067.5,2066.0,0.48421]
[1773334079178,0.63207516,2067.4,2066.0,0.48421]
[1773334079375,0.63207516,2067.4,2066.2,0.24197]
[1773334079575,0.63207516,2067.4,2066.3,6.57201]
[1773334079879,0.62581049,2067.2,2066.3,6.57018]
[1773334080481,0.62581049,2067.2,2066.3,6.57079]
[1773334081279,0.62581049,2067.2,2066.3,6.327]
[1773334081881,0.62581049,2067.2,2066.3,6.56985]
[1773334082083,0.62226414,2067.9,2066.4,0.48791]
[1773334082279,0.62226414,2067.9,2066.4,7.82300507]
[1773334082683,0.62226414,2067.9,2066.4,8.07046507]
[1773334082978,0.62226414,2067.7,2066.3,7.58105507]
[1773334083284,0.6273375,2067.7,2066.4,6.327]
[1773334083684,0.6273375,2067.7,2066.4,6.57028]
[1773334083882,0.6273375,2067.7,2066.4,6.327]
[1773334084779,0.6273375,2067.7,2066.4,6.56996]
[1773334084979,0.6273375,2067.7,2066.4,14.15101507]
[1773334085578,0.6273375,2067.7,2066.4,13.90805507]
[1773334085983,0.6273375,2067.7,2066.4,14.15139507]
[1773334086483,0.6273375,2067.7,2066.5,7.82787507]
[1773334086884,0.6273375,2067.7,2066.5,7.58105507]
[1773334087088,0.6273375,2067.7,2066.5,7.82335507]
[1773334087289,0.6273375,2067.7,2066.6,7.83029507]
[1773334089384,0.6273375,2067.7,2066.6,7.82330507]
[1773334089586,0.6273375,2067.7,2066.6,7.82468507]
[1773334089788,0.6273375,2067.7,2066.6,7.58105507]
[1773334090087,0.6273375,2067.7,2066.6,7.82456507]
[1773334091483,0.6273375,2067.7,2066.7,6.57608]
[1773334091783,0.62966403,2067.9,2066.8,7.58105507]
[1773334091990,0.62966403,2067.8,2066.8,0.24577]
[1773334092189,0.62966403,2067.8,2066.7,14.15092507]
[1773334092596,0.62966403,2067.6,2066.7,14.15202507]
[1773334093281,0.00339896,2067.8,2066.8,0.26087]
[1773334093482,0.63116448,2067.8,2066.8,0.26087]
[1773334093881,0.63116448,2067.8,2066.8,7.84192507]
[1773334094293,0.63116448,2067.8,2066.8,7.58105507]
[1773334094487,0.63116448,2067.8,2066.9,6.328]
[1773334094693,0.00339896,2067.8,2066.9,13.90905507]
[1773334094992,0.62776552,2067.7,2066.9,6.58699]
[1773334095792,0.62776552,2067.7,2066.9,6.57187]
[1773334098392,0.5906627,2068.1,2067.1,0.18924177]
[1773334098794,0.5906627,2068.1,2067.3,0.46299177]
[1773334099096,0.5906627,2068.1,2067.7,0.18924177]
[1773334099293,0.00364253,2068.1,2067.8,6.92035603]
[1773334099492,0.59430523,2068.1,2067.8,6.57051]
[1773334099697,0.59430523,2068.1,2067.8,6.328]
[1773334099899,0.59430523,2068.1,2067.8,6.57199]
[1773334100299,0.59430523,2068.1,2067.8,0.24399]
[1773334100501,0.59430523,2068.1,2067.8,6.57199]
[1773334101095,0.56386267,2068.1,2067.8,6.57199]
[1773334101893,0.56386267,2068.1,2067.4,0.32803449]
[1773334102099,0.56386267,2068.1,2067.5,6.328]
[1773334102298,0.56386267,2068.1,2067.6,6.328]
[1773334102503,0.56386267,2068.1,2067.6,6.65603449]
[1773334102800,0.00364253,2068.1,2067.7,0.32803449]
[1773334103000,0.56386267,2068.1,2067.7,0.00498733]
[1773334103401,0.56022014,2068.3,2067.7,0.00498733]
[1773334103896,0.56022014,2068.3,2067.7,0.32947473]
[1773334104400,0.56432983,2068.3,2067.7,0.32947473]
[1773334105407,0.56022014,2068.7,2067.8,0.32391903]
[1773334105904,0.56022014,2068.7,2067.9,6.65191903]
[1773334106404,0.56022014,2068.7,2067.9,6.328]
[1773334106594,0.56401843,2068.7,2067.9,6.328]
[1773334106800,0.56401843,2068.7,2067.8,0.32391903]
[1773334107000,0.56401843,2068.7,2067.9,6.328]
[1773334108206,0.56401843,2068.7,2067.9,6.64959801]
[1773334109009,0.00379829,2068.7,2068.0,0.32159801]
[1773334109509,0.00379829,2068.7,2068.0,0.56334801]
[1773334109711,1.056,2069.0,2068.2,0.32155095]
[1773334109908,1.056,2069.0,2068.4,0.32155095]
[1773334110604,1.06067247,2069.0,2068.4,0.32155095]
[1773334112012,0.56022014,2068.9,2068.3,0.32484066]
[1773334112214,1.62089261,2069.0,2068.5,0.32484066]
[1773334112505,0.56022014,2068.9,2068.6,6.327]
[1773334112704,0.56022014,2068.9,2068.2,0.32484066]
[1773334112907,0.56022014,2068.7,2068.0,0.32484066]
[1773334113107,0.56022014,2068.7,2068.1,6.327]
[1773334113301,0.56022014,2068.7,2068.1,6.6574272]
[1773334113506,0.56022014,2068.7,2068.2,0.3304272]
[1773334113913,0.56022014,2068.7,2067.8,0.3304272]
[1773334114107,0.56022014,2068.7,2068.0,0.3304272]
[1773334115714,0.56022014,2068.7,2068.1,6.327]
[1773334118316,0.56022014,2068.5,2067.9,0.32911324]
[1773334119418,0.56022014,2068.9,2067.9,0.32911324]
[1773334122125,0.56022014,2068.9,2067.8,9.37741719]
[1773334122126,1.06067247,2069.0,2068.0,0.24319]
[1773334122427,0.24166,2068.9,2068.1,6.328]
[1773334122621,0.24166,2068.9,2068.2,6.328]
[1773334122829,0.24166,2068.9,2068.0,6.328]
[1773334123533,0.24166,2068.9,2067.7,0.00498733]
[1773334123731,0.24166,2068.9,2067.8,6.328]
[1773334124829,1.06067247,2069.0,2067.8,9.13563719]
[1773334125034,1.06067247,2069.0,2067.9,0.24177]
[1773334125639,1.06067247,2069.0,2067.9,7.82282507]
[1773334126032,1.06067247,2069.0,2068.0,7.58105507]
[1773334126532,0.81530247,2069.0,2068.1,3.04938719]
[1773334126734,0.81530247,2069.0,2068.3,0.24173]
[1773334127238,0.81530247,2069.0,2068.3,0.49425]
[1773334127431,0.63804592,2069.0,2068.3,0.49425]
[1773334127631,0.63804592,2069.0,2068.3,8.07530507]
[1773334128628,5.86793062,2069.8,2068.3,0.49425]
[1773334129026,5.86793062,2069.8,2069.2,0.022]
[1773334129027,5.84593062,2069.8,2069.2,0.022]
[1773334129635,0.066,2069.7,2069.2,0.02825833]
[1773334133733,0.24158,2069.6,2069.2,8.33e-06]
[1773334133930,0.32958,2069.6,2069.0,0.022]
[1773334134842,0.32958,2069.6,2069.0,0.02580556]
[1773334135437,0.24163,2069.2,2068.8,0.022]
[1773334135641,0.24163,2069.2,2068.6,0.022]
[1773334136440,0.24163,2069.2,2068.6,0.02771409]
[1773334138647,5.77517349,2069.4,2068.4,0.022]
[1773334138648,0.24167,2068.8,2068.4,0.022]
[1773334139044,0.24167,2068.8,2068.0,0.022]
[1773334140147,0.24167,2068.8,2068.2,0.02584953]
[1773334140348,0.59190009,2068.7,2068.2,0.02584953]
[1773334141142,0.59190009,2068.7,2068.2,0.27927333]
[1773334141747,0.59190009,2068.7,2068.2,0.02584953]
[1773334142349,0.59190009,2068.7,2068.0,0.022]
[1773334143248,0.59190009,2068.7,2068.0,0.02657309]
[1773334144750,0.59190009,2068.7,2068.0,0.30025369]
[1773334145352,0.59190009,2069.0,2068.2,0.2946483]
[1773334145650,0.198,2069.1,2068.5,0.2946483]
[1773334146150,0.59190009,2069.4,2068.8,0.2946483]
[1773334146444,0.59190009,2069.4,2068.7,2.80763719]
[1773334146445,0.59190009,2069.4,2068.9,6.329]
[1773334146642,0.59190009,2069.9,2069.2,0.5911033]
[1773334146944,5.93257215,2070.4,2069.2,0.5911033]
[1773334146945,0.5961912,2069.8,2069.2,0.5911033]
[1773334147147,0.00429111,2069.8,2069.2,0.5911033]
[1773334147351,0.59190009,2070.0,2069.2,0.5691033]
[1773334148347,0.59190009,2070.2,2069.4,0.5691033]
[1773334148652,0.59190009,2070.4,2069.6,0.5691033]
[1773334148951,0.59190009,2070.4,2069.7,0.5691033]
[1773334149352,0.59190009,2070.4,2069.5,6.8981033]
[1773334149654,0.59771891,2070.4,2069.6,0.5691033]
[1773334151650,0.43039503,2070.9,2069.6,0.5691033]
[1773334152151,0.43039503,2070.9,2069.5,6.57567268]
[1773334152152,0.43039503,2070.9,2069.5,0.00511268]
[1773334152354,0.42528235,2070.7,2069.4,0.5691033]
[1773334153046,0.42528235,2070.7,2069.6,0.5691033]
[1773334153444,0.42995305,2070.7,2069.7,0.5691033]
[1773334153648,0.0046707,2070.7,2069.7,0.8123833]
[1773334153853,0.41532733,2070.9,2070.0,0.5691033]
[1773334154045,0.29368029,2071.5,2070.3,0.5691033]
[1773334154247,0.29368029,2071.5,2070.4,6.92330896]
[1773334154451,6.17701,2071.9,2070.5,0.59530896]
[1773334154850,6.18285823,2071.9,2070.5,0.59530896]
[1773334155253,6.18285823,2071.9,2070.6,6.327]
[1773334155447,6.18285823,2071.9,2070.6,6.94109075]
[1773334155645,0.24713823,2071.9,2070.7,0.61409075]
[1773334155848,0.53387662,2071.9,2070.7,0.61409075]
[1773334157256,0.24713823,2071.9,2070.7,0.61409075]
[1773334157450,0.22513823,2071.9,2071.7,0.022]
[1773334157751,0.18542927,2071.9,2071.5,0.022]
[1773334157950,0.18542927,2071.9,2071.3,0.022]
[1773334158150,0.066,2071.8,2071.1,0.022]
[1773334158852,0.066,2071.8,2071.1,0.02676455]
[1773334159656,0.11,2071.6,2070.9,6.349]
[1773334159855,0.11,2071.6,2070.9,6.98463839]
[1773334160560,0.11,2071.6,2070.9,6.98870115]
[1773334162057,0.24133,2071.5,2070.9,0.02606276]
[1773334162259,0.4835,2071.5,2070.7,6.348]
[1773334162458,0.6155,2071.5,2070.7,6.348]
[1773334162861,0.6155,2071.5,2070.3,0.66326746]
[1773334162862,0.48485,2071.3,2070.3,0.66326746]
[1773334163057,0.66085,2071.3,2070.3,0.66326746]
[1773334163458,6.59842,2071.3,2070.3,0.02738163]
[1773334163662,6.59842,2071.3,2070.1,0.69179999]
[1773334163663,0.24142,2070.8,2070.1,0.69179999]
[1773334163862,0.198,2071.2,2070.1,0.69179999]
[1773334164162,0.44146,2071.2,2070.1,0.69179999]
[1773334164663,0.198,2071.2,2070.1,0.69622719]
[1773334164863,0.44072,2071.2,2070.1,0.69622719]
[1773334165159,0.198,2071.2,2070.3,0.66979999]
[1773334166855,0.2413,2071.8,2070.3,0.66979999]
[1773334167060,0.2413,2071.8,2070.5,0.57515997]
[1773334167258,0.04583395,2071.9,2071.6,0.022]
[1773334167455,0.04583395,2071.9,2071.6,0.02703729]
[1773334167456,0.00584823,2071.9,2071.6,0.02703729]
[1773334167654,0.04346321,2071.9,2071.2,0.022]
[1773334167860,0.03761498,2071.6,2071.2,0.022]
[1773334168158,0.10361498,2071.7,2071.2,0.59834534]
[1773334168363,0.03761498,2071.6,2071.0,0.59834534]
[1773334168562,0.12561498,2071.6,2071.0,0.59834534]
[1773334168757,0.12561498,2071.6,2071.0,0.6020381]
[1773334168957,0.03761498,2071.2,2070.6,0.59834534]
[1773334169358,0.03761498,2071.2,2070.6,0.022]
[1773334170065,0.03761498,2071.2,2070.6,0.02553476]
[1773334170368,0.05087945,2071.0,2070.6,0.02553476]
[1773334170663,0.29225945,2071.1,2070.6,0.59524786]
[1773334170864,0.05087945,2071.3,2070.6,0.59524786]
[1773334172160,0.132,2071.4,2070.6,0.59524786]
[1773334175061,0.17158986,2071.4,2070.6,0.59524786]
[1773334175369,0.03958986,2071.3,2070.6,0.59524786]
[1773334175963,0.03958986,2071.3,2070.6,0.02553476]
[1773334176163,0.56763736,2070.9,2070.5,6.326]
[1773334176369,0.56763736,2070.9,2070.4,0.56681739]
[1773334176868,0.154,2071.3,2070.4,0.56681739]
[1773334177264,0.154,2071.3,2070.4,0.57094518]
[1773334178058,0.72163736,2071.3,2070.4,0.57094518]
[1773334180464,0.56763736,2071.7,2070.6,0.54481739]
[1773334180764,0.57348559,2071.9,2070.6,0.54481739]
[1773334181066,0.55148559,2071.9,2071.5,0.56681739]
[1773334181365,4.00937998,2072.3,2071.5,0.56681739]
[1773334181366,0.56763736,2072.2,2071.5,0.56681739]
[1773334181563,0.56763736,2071.9,2071.5,0.56681739]
[1773334181965,0.57360262,2071.9,2071.5,0.56681739]
[1773334182364,0.022,2072.0,2071.5,0.56681739]
[1773334182566,0.022,2072.0,2071.3,0.022]
[1773334182567,0.57056869,2072.9,2071.7,0.55570922]
[1773334182867,0.54856869,2073.0,2071.9,0.55570922]
[1773334183068,0.57056869,2073.2,2071.9,0.55570922]
[1773334183466,0.022,2073.1,2071.9,0.56172606]
[1773334184270,0.59256869,2073.1,2071.9,0.56172606]